[Event "*** SCC Grand Prix: Titled Tuesday Blitz"]
[Site "Chess.com"]
[Date "2020.06.02"]
[Round "2"]
[White "Trickov"]
[Black "ChristopherYoo"]
[Result "1/2-1/2"]
[WhiteElo "2338"]
[BlackElo "2820"]
[TimeControl "180+1"]
[EndTime "10:18:38 PDT"]
[Termination "Game drawn by stalemate"]

1. d4 {[%clk 0:01:50.8]} 1... Nf6 {[%clk 0:02:59.1]} 2. Nf3 {[%clk 0:01:48.4]}
2... g6 {[%clk 0:02:59.1]} 3. c4 {[%clk 0:01:46.3]} 3... Bg7 {[%clk 0:02:59]} 4.
g3 {[%clk 0:01:46.7]} 4... O-O {[%clk 0:02:58.1]} 5. Bg2 {[%clk 0:01:47.2]} 5...
Nc6 {[%clk 0:02:57.9]} 6. d5 {[%clk 0:01:46.7]} 6... Na5 {[%clk 0:02:57.6]} 7.
Qc2 {[%clk 0:01:46.3]} 7... c5 {[%clk 0:02:47.1]} 8. O-O {[%clk 0:01:43.4]} 8...
d6 {[%clk 0:02:46.7]} 9. e4 {[%clk 0:01:42.5]} 9... Bg4 {[%clk 0:02:45.8]} 10.
h3 {[%clk 0:01:41.3]} 10... Bxf3 {[%clk 0:02:43.9]} 11. Bxf3 {[%clk 0:01:41.3]}
11... a6 {[%clk 0:02:37.3]} 12. Bd2 {[%clk 0:01:40.8]} 12... b5 {[%clk
0:02:34.3]} 13. cxb5 {[%clk 0:01:28.8]} 13... axb5 {[%clk 0:02:35.2]} 14. Nc3
{[%clk 0:01:28.2]} 14... Qd7 {[%clk 0:02:33.3]} 15. b3 {[%clk 0:01:26.3]} 15...
Rfb8 {[%clk 0:02:25]} 16. Bg2 {[%clk 0:01:25.1]} 16... Ne8 {[%clk 0:02:18.4]}
17. Rac1 {[%clk 0:01:16.4]} 17... Nc7 {[%clk 0:02:18]} 18. f4 {[%clk 0:01:14.7]}
18... b4 {[%clk 0:02:12.4]} 19. Ne2 {[%clk 0:01:01.7]} 19... Nb5 {[%clk
0:02:08.2]} 20. e5 {[%clk 0:00:42.7]} 20... dxe5 {[%clk 0:01:27.3]} 21. Qxc5
{[%clk 0:00:40.7]} 21... Nb7 {[%clk 0:01:15.5]} 22. Qc6 {[%clk 0:00:38.5]} 22...
Rd8 {[%clk 0:00:56.5]} 23. Bxb4 {[%clk 0:00:31.1]} 23... Rxa2 {[%clk 0:00:47.4]}
24. Nc3 {[%clk 0:00:31.2]} 24... Nd4 {[%clk 0:00:42.9]} 25. Qxd7 {[%clk
0:00:28.8]} 25... Rxd7 {[%clk 0:00:43.8]} 26. Nxa2 {[%clk 0:00:28.7]} 26... Ne2+
{[%clk 0:00:34.3]} 27. Kh2 {[%clk 0:00:28.3]} 27... Nxc1 {[%clk 0:00:34.3]} 28.
Rxc1 {[%clk 0:00:28.3]} 28... exf4 {[%clk 0:00:33.3]} 29. gxf4 {[%clk
0:00:27.7]} 29... Bf6 {[%clk 0:00:29.5]} 30. Bc3 {[%clk 0:00:27.1]} 30... Nd6
{[%clk 0:00:25.9]} 31. Bxf6 {[%clk 0:00:23.8]} 31... exf6 {[%clk 0:00:26.8]} 32.
Rc6 {[%clk 0:00:18.4]} 32... Kg7 {[%clk 0:00:25.6]} 33. Nc3 {[%clk 0:00:17]}
33... Nf5 {[%clk 0:00:18.8]} 34. b4 {[%clk 0:00:16.8]} 34... Nd4 {[%clk
0:00:15.7]} 35. Rc4 {[%clk 0:00:15.7]} 35... Nc2 {[%clk 0:00:14.9]} 36. b5
{[%clk 0:00:15.4]} 36... Ne3 {[%clk 0:00:15]} 37. Re4 {[%clk 0:00:14.9]} 37...
Nf5 {[%clk 0:00:13.6]} 38. b6 {[%clk 0:00:13.5]} 38... Rb7 {[%clk 0:00:10.9]}
39. Rb4 {[%clk 0:00:13.3]} 39... Nd6 {[%clk 0:00:11.3]} 40. Na4 {[%clk
0:00:13.2]} 40... Rb8 {[%clk 0:00:05.5]} 41. Nc5 {[%clk 0:00:13.3]} 41... g5
{[%clk 0:00:02.3]} 42. fxg5 {[%clk 0:00:12.7]} 42... fxg5 {[%clk 0:00:03]} 43.
Ne4 {[%clk 0:00:13.1]} 43... Nxe4 {[%clk 0:00:01.9]} 44. Bxe4 {[%clk 0:00:12.7]}
44... Kf6 {[%clk 0:00:02.4]} 45. d6 {[%clk 0:00:12.3]} 45... Ke5 {[%clk
0:00:02.8]} 46. Bg2 {[%clk 0:00:11.6]} 46... Kxd6 {[%clk 0:00:03]} 47. b7 {[%clk
0:00:12.1]} 47... f5 {[%clk 0:00:01.8]} 48. Rb6+ {[%clk 0:00:10.7]} 48... Kc7
{[%clk 0:00:01.8]} 49. Rf6 {[%clk 0:00:07.9]} 49... f4 {[%clk 0:00:02.2]} 50.
Rf7+ {[%clk 0:00:07.7]} 50... Kb6 {[%clk 0:00:01.9]} 51. Rxh7 {[%clk 0:00:08.2]}
51... Ka7 {[%clk 0:00:02]} 52. Rg7 {[%clk 0:00:08.3]} 52... Rf8 {[%clk
0:00:02.1]} 53. Rxg5 {[%clk 0:00:08.4]} 53... f3 {[%clk 0:00:02.6]} 54. Bf1
{[%clk 0:00:08.3]} 54... Kxb7 {[%clk 0:00:03.2]} 55. Kg3 {[%clk 0:00:08.5]}
55... Kc6 {[%clk 0:00:03.6]} 56. Rg4 {[%clk 0:00:08.9]} 56... Kd5 {[%clk
0:00:02.3]} 57. Rf4 {[%clk 0:00:09.1]} 57... Rxf4 {[%clk 0:00:02.3]} 58. Kxf4
{[%clk 0:00:09.1]} 58... Ke6 {[%clk 0:00:03.2]} 59. h4 {[%clk 0:00:09.3]} 59...
Kf6 {[%clk 0:00:04.1]} 60. h5 {[%clk 0:00:09.5]} 60... Kg7 {[%clk 0:00:05]} 61.
Kxf3 {[%clk 0:00:09.9]} 61... Kh8 {[%clk 0:00:05.9]} 62. Kg4 {[%clk 0:00:10]}
62... Kg7 {[%clk 0:00:05.2]} 63. Kg5 {[%clk 0:00:10]} 63... Kh8 {[%clk
0:00:06.1]} 64. h6 {[%clk 0:00:10.3]} 64... Kg8 {[%clk 0:00:07]} 65. Kg6 {[%clk
0:00:10.6]} 65... Kh8 {[%clk 0:00:07.9]} 66. h7 {[%clk 0:00:10.9]} 1/2-1/2

[Event "*** SCC Grand Prix: Titled Tuesday Blitz"]
[Site "Chess.com"]
[Date "2020.06.02"]
[Round "2"]
[White "aisha_zakirova"]
[Black "mikerahal"]
[Result "1-0"]
[WhiteElo "1972"]
[BlackElo "2322"]
[TimeControl "180+1"]
[EndTime "10:18:41 PDT"]
[Termination "aisha_zakirova won by resignation"]

1. d4 {[%clk 0:03:00.9]} 1... Nf6 {[%clk 0:02:59]} 2. c4 {[%clk 0:02:59.4]} 2...
g6 {[%clk 0:02:59]} 3. Nc3 {[%clk 0:02:58.7]} 3... Bg7 {[%clk 0:02:58.5]} 4. e4
{[%clk 0:02:58.7]} 4... d6 {[%clk 0:02:59.1]} 5. Be2 {[%clk 0:02:57.9]} 5... O-O
{[%clk 0:02:58.9]} 6. Bg5 {[%clk 0:02:57.8]} 6... c5 {[%clk 0:02:43.4]} 7. d5
{[%clk 0:02:54.3]} 7... e6 {[%clk 0:02:43.6]} 8. Nf3 {[%clk 0:02:50.7]} 8...
exd5 {[%clk 0:02:39.8]} 9. Nxd5 {[%clk 0:02:47.8]} 9... h6 {[%clk 0:02:03.1]}
10. Nxf6+ {[%clk 0:02:35.2]} 10... Bxf6 {[%clk 0:02:04]} 11. Bxh6 {[%clk
0:02:34.9]} 11... Bxb2 {[%clk 0:01:59.7]} 12. Rb1 {[%clk 0:02:32.9]} 12... Bc3+
{[%clk 0:01:56.8]} 13. Nd2 {[%clk 0:02:26.4]} 13... Bg7 {[%clk 0:01:53.5]} 14.
Bxg7 {[%clk 0:02:22.9]} 14... Kxg7 {[%clk 0:01:54.4]} 15. O-O {[%clk 0:02:16.3]}
15... Nc6 {[%clk 0:01:54.6]} 16. Nf3 {[%clk 0:02:14.7]} 16... Bg4 {[%clk
0:01:54.2]} 17. Rxb7 {[%clk 0:02:12]} 17... Bxf3 {[%clk 0:01:41.1]} 18. Bxf3
{[%clk 0:02:11.2]} 18... Nd4 {[%clk 0:01:38.6]} 19. e5 {[%clk 0:02:09.1]} 19...
dxe5 {[%clk 0:01:35.2]} 20. Bd5 {[%clk 0:02:04.9]} 20... Qa5 {[%clk 0:01:12.5]}
21. Re1 {[%clk 0:01:49.6]} 21... Rab8 {[%clk 0:00:46.3]} 22. Re7 {[%clk
0:01:40.2]} 22... Qxa2 {[%clk 0:00:43.7]} 23. R7xe5 {[%clk 0:01:30.9]} 23... Rb2
{[%clk 0:00:36.5]} 24. Rf1 {[%clk 0:01:20.8]} 24... Rfb8 {[%clk 0:00:34.6]} 25.
Re7 {[%clk 0:01:04.6]} 25... Rf8 {[%clk 0:00:32.3]} 26. Qe1 {[%clk 0:00:58.7]}
26... Re2 {[%clk 0:00:30.5]} 27. Rxe2 {[%clk 0:00:55.4]} 27... Nxe2+ {[%clk
0:00:28.5]} 28. Kh1 {[%clk 0:00:54.9]} 28... Rh8 {[%clk 0:00:25]} 29. Bf3 {[%clk
0:00:49.1]} 29... Nd4 {[%clk 0:00:17.9]} 30. Qe5+ {[%clk 0:00:48.3]} 30... Kh7
{[%clk 0:00:18.5]} 31. Bd5 {[%clk 0:00:45.5]} 31... Rf8 {[%clk 0:00:09]} 32. Qf6
{[%clk 0:00:38.8]} 32... Qa5 {[%clk 0:00:07.9]} 33. Bxf7 {[%clk 0:00:35]} 33...
Qb6 {[%clk 0:00:06.8]} 34. Bxg6+ {[%clk 0:00:31.3]} 34... Kg8 {[%clk 0:00:05.3]}
35. Qg5 {[%clk 0:00:30.1]} 35... Ne6 {[%clk 0:00:03.8]} 36. Qh6 {[%clk
0:00:27.5]} 36... Qc7 {[%clk 0:00:01.7]} 37. Be4 {[%clk 0:00:20.9]} 37... Qg7
{[%clk 0:00:02]} 38. Qxe6+ {[%clk 0:00:20.3]} 38... Kh8 {[%clk 0:00:01.8]} 39.
Qh3+ {[%clk 0:00:19.9]} 39... Kg8 {[%clk 0:00:01.8]} 40. Bd5+ {[%clk 0:00:20.1]}
40... Rf7 {[%clk 0:00:02.4]} 41. Bxf7+ {[%clk 0:00:20.5]} 41... Qxf7 {[%clk
0:00:03.2]} 42. Qg4+ {[%clk 0:00:18.7]} 42... Kf8 {[%clk 0:00:03.7]} 43. Qf3
{[%clk 0:00:18.7]} 43... Ke7 {[%clk 0:00:03.4]} 44. Qxf7+ {[%clk 0:00:18.5]}
44... Kxf7 {[%clk 0:00:04.3]} 45. h4 {[%clk 0:00:18.8]} 45... Kf6 {[%clk
0:00:05.2]} 46. g4 {[%clk 0:00:19.2]} 46... Ke5 {[%clk 0:00:06.1]} 47. h5 {[%clk
0:00:19.6]} 47... a5 {[%clk 0:00:07]} 48. h6 {[%clk 0:00:20.5]} 48... a4 {[%clk
0:00:07.9]} 49. h7 {[%clk 0:00:21]} 49... a3 {[%clk 0:00:07.9]} 50. h8=Q+ {[%clk
0:00:20.3]} 50... Kf4 {[%clk 0:00:08.8]} 51. Qc3 {[%clk 0:00:19.7]} 51... Kxg4
{[%clk 0:00:09.7]} 52. Qg3+ {[%clk 0:00:19.5]} 52... Kf5 {[%clk 0:00:09.7]} 53.
f4 {[%clk 0:00:19.7]} 53... a2 {[%clk 0:00:10.6]} 54. Qd3+ {[%clk 0:00:19.4]}
54... Kg4 {[%clk 0:00:10.6]} 55. f5 {[%clk 0:00:18.8]} 55... Kh4 {[%clk
0:00:10.1]} 56. f6 {[%clk 0:00:18.4]} 56... Kg5 {[%clk 0:00:10.3]} 57. f7 {[%clk
0:00:18.6]} 57... Kg4 {[%clk 0:00:08.5]} 58. f8=Q {[%clk 0:00:17.8]} 58... a1=Q
{[%clk 0:00:09.4]} 59. Rxa1 {[%clk 0:00:17.5]} 1-0

[Event "*** SCC Grand Prix: Titled Tuesday Blitz"]
[Site "Chess.com"]
[Date "2020.06.02"]
[Round "2"]
[White "Natalya_Buksa"]
[Black "Shtembuliak"]
[Result "0-1"]
[WhiteElo "2555"]
[BlackElo "2880"]
[TimeControl "180+1"]
[EndTime "10:18:42 PDT"]
[Termination "Shtembuliak won by resignation"]

1. e4 {[%clk 0:03:00.9]} 1... g6 {[%clk 0:03:00.1]} 2. d4 {[%clk 0:03:00.6]}
2... Bg7 {[%clk 0:03:00.3]} 3. Nc3 {[%clk 0:03:01.2]} 3... d6 {[%clk 0:03:00.6]}
4. f4 {[%clk 0:03:01.3]} 4... a6 {[%clk 0:03:00.4]} 5. Nf3 {[%clk 0:03:01]} 5...
Nd7 {[%clk 0:03:00.9]} 6. Bd3 {[%clk 0:03:01.1]} 6... c5 {[%clk 0:03:00.7]} 7.
Be3 {[%clk 0:02:57.2]} 7... cxd4 {[%clk 0:03:00.6]} 8. Bxd4 {[%clk 0:02:52]}
8... e5 {[%clk 0:03:00.7]} 9. fxe5 {[%clk 0:02:48.3]} 9... dxe5 {[%clk
0:03:00.6]} 10. Be3 {[%clk 0:02:47.6]} 10... Ngf6 {[%clk 0:03:01]} 11. O-O
{[%clk 0:02:47.2]} 11... O-O {[%clk 0:03:00.4]} 12. Kh1 {[%clk 0:02:46.4]} 12...
b5 {[%clk 0:03:00]} 13. a3 {[%clk 0:02:23.6]} 13... Bb7 {[%clk 0:03:00.1]} 14.
Qe2 {[%clk 0:02:22.9]} 14... Qc7 {[%clk 0:02:48.1]} 15. Rad1 {[%clk 0:02:22.1]}
15... Nc5 {[%clk 0:02:44]} 16. Bg5 {[%clk 0:02:08.5]} 16... Ne6 {[%clk
0:02:26.6]} 17. Bc1 {[%clk 0:01:49.2]} 17... Rad8 {[%clk 0:02:20.9]} 18. Qf2
{[%clk 0:01:45.2]} 18... Nh5 {[%clk 0:02:10.6]} 19. Be3 {[%clk 0:01:44.1]} 19...
Rd7 {[%clk 0:01:56.2]} 20. Bb6 {[%clk 0:01:41.8]} 20... Qc8 {[%clk 0:01:56.1]}
21. a4 {[%clk 0:01:13.2]} 21... Nhf4 {[%clk 0:01:27.7]} 22. axb5 {[%clk
0:01:08.7]} 22... Nxd3 {[%clk 0:01:27.9]} 23. cxd3 {[%clk 0:00:50.4]} 23... axb5
{[%clk 0:01:28]} 24. Rc1 {[%clk 0:00:38.8]} 24... Rxd3 {[%clk 0:01:07.7]} 25.
Nd5 {[%clk 0:00:34.7]} 25... Qd7 {[%clk 0:01:07.1]} 26. Qc2 {[%clk 0:00:28.8]}
26... Nf4 {[%clk 0:00:52.8]} 27. Nxe5 {[%clk 0:00:21.9]} 27... Bxe5 {[%clk
0:00:47.6]} 28. Nxf4 {[%clk 0:00:22.4]} 28... Rd2 {[%clk 0:00:45.2]} 29. Qc5
{[%clk 0:00:15.3]} 29... Bd4 {[%clk 0:00:26.9]} 30. Qc7 {[%clk 0:00:15.4]} 30...
Bxb6 {[%clk 0:00:25]} 31. Qxb6 {[%clk 0:00:13.2]} 31... Bxe4 {[%clk 0:00:25.6]}
32. Rf2 {[%clk 0:00:08.1]} 32... Rd1+ {[%clk 0:00:21.8]} 33. Rf1 {[%clk
0:00:08.4]} 33... Rxc1 {[%clk 0:00:21.6]} 34. Rxc1 {[%clk 0:00:08.5]} 34... Qd2
{[%clk 0:00:22.2]} 35. Rf1 {[%clk 0:00:07.2]} 35... Qxb2 {[%clk 0:00:21.3]} 36.
h3 {[%clk 0:00:07.7]} 36... b4 {[%clk 0:00:19.6]} 37. Qe3 {[%clk 0:00:08]} 37...
Ba8 {[%clk 0:00:14.8]} 38. Rf2 {[%clk 0:00:05.8]} 38... Qb1+ {[%clk 0:00:13.7]}
39. Kh2 {[%clk 0:00:06.1]} 39... Qe4 {[%clk 0:00:14.3]} 40. Qb3 {[%clk
0:00:04.9]} 40... Qd4 {[%clk 0:00:10.4]} 41. Nd3 {[%clk 0:00:04.6]} 41... Be4
{[%clk 0:00:08.9]} 42. Rf4 {[%clk 0:00:02.2]} 42... Qxd3 {[%clk 0:00:08.3]} 43.
Qxb4 {[%clk 0:00:02.7]} 43... Bf5 {[%clk 0:00:07.8]} 44. Qe7 {[%clk 0:00:02.6]}
44... Be6 {[%clk 0:00:07.6]} 45. Qg5 {[%clk 0:00:03]} 45... Qd6 {[%clk
0:00:07.6]} 46. h4 {[%clk 0:00:03.1]} 46... Qd8 {[%clk 0:00:07.7]} 47. Qg3
{[%clk 0:00:03.2]} 47... h5 {[%clk 0:00:07.5]} 48. Rf2 {[%clk 0:00:03]} 48...
Qb8 {[%clk 0:00:07.2]} 49. Rf4 {[%clk 0:00:03.5]} 49... Rc8 {[%clk 0:00:06.8]}
50. Re4 {[%clk 0:00:02.1]} 50... Qxg3+ {[%clk 0:00:06.4]} 51. Kxg3 {[%clk
0:00:03]} 51... Rc4 {[%clk 0:00:06.8]} 52. Re3 {[%clk 0:00:02.7]} 52... Rg4+
{[%clk 0:00:06.9]} 53. Kh2 {[%clk 0:00:02.7]} 53... Rxh4+ {[%clk 0:00:07.2]} 54.
Kg3 {[%clk 0:00:03.3]} 54... Rg4+ {[%clk 0:00:08.1]} 55. Kf3 {[%clk 0:00:03.6]}
55... Kg7 {[%clk 0:00:08.8]} 56. Ra3 {[%clk 0:00:03.5]} 56... Bd5+ {[%clk
0:00:09.1]} 57. Kf2 {[%clk 0:00:02.6]} 57... Rxg2+ {[%clk 0:00:09.2]} 58. Kf1
{[%clk 0:00:03.5]} 58... Rg4 {[%clk 0:00:09.4]} 59. Ra7 {[%clk 0:00:03.1]} 59...
Bc4+ {[%clk 0:00:09.2]} 60. Kf2 {[%clk 0:00:03.5]} 60... h4 {[%clk 0:00:09.7]}
61. Ra3 {[%clk 0:00:02.8]} 61... Be6 {[%clk 0:00:09]} 62. Rh3 {[%clk 0:00:02.5]}
62... Rf4+ {[%clk 0:00:08.8]} 63. Kg2 {[%clk 0:00:03.1]} 63... Bxh3+ {[%clk
0:00:09.7]} 64. Kxh3 {[%clk 0:00:04]} 64... g5 {[%clk 0:00:10.1]} 0-1

[Event "*** SCC Grand Prix: Titled Tuesday Blitz"]
[Site "Chess.com"]
[Date "2020.06.02"]
[Round "2"]
[White "MasterKroket"]
[Black "Konovalova_Vera"]
[Result "1-0"]
[WhiteElo "2415"]
[BlackElo "2165"]
[TimeControl "180+1"]
[EndTime "10:18:42 PDT"]
[Termination "MasterKroket won by resignation"]

1. d4 {[%clk 0:02:57.9]} 1... Nf6 {[%clk 0:02:58.6]} 2. c4 {[%clk 0:02:57.4]}
2... e6 {[%clk 0:02:58.4]} 3. Nf3 {[%clk 0:02:56.5]} 3... Bb4+ {[%clk
0:02:58.2]} 4. Bd2 {[%clk 0:02:56.3]} 4... Qe7 {[%clk 0:02:56.2]} 5. g3 {[%clk
0:02:55.5]} 5... O-O {[%clk 0:02:54.4]} 6. Bg2 {[%clk 0:02:55.7]} 6... c6 {[%clk
0:02:53.2]} 7. O-O {[%clk 0:02:55.5]} 7... Bxd2 {[%clk 0:02:51.5]} 8. Nbxd2
{[%clk 0:02:55.2]} 8... d5 {[%clk 0:02:51.4]} 9. Qc2 {[%clk 0:02:54.3]} 9...
Nbd7 {[%clk 0:02:49.3]} 10. e4 {[%clk 0:02:52.5]} 10... dxe4 {[%clk 0:02:47.9]}
11. Ng5 {[%clk 0:02:52.6]} 11... h6 {[%clk 0:02:44.9]} 12. Ngxe4 {[%clk
0:02:51.9]} 12... Nxe4 {[%clk 0:02:44.6]} 13. Nxe4 {[%clk 0:02:51]} 13... Nf6
{[%clk 0:02:44.2]} 14. Nc3 {[%clk 0:02:49.4]} 14... Rd8 {[%clk 0:02:33.1]} 15.
Rad1 {[%clk 0:02:48.7]} 15... Bd7 {[%clk 0:02:30.7]} 16. Rfe1 {[%clk 0:02:48]}
16... Qf8 {[%clk 0:02:22.6]} 17. a3 {[%clk 0:02:41.4]} 17... c5 {[%clk
0:02:02.5]} 18. Bxb7 {[%clk 0:02:34.7]} 18... Rab8 {[%clk 0:02:01.4]} 19. Bg2
{[%clk 0:02:33.1]} 19... cxd4 {[%clk 0:01:48.4]} 20. Rxd4 {[%clk 0:02:32.8]}
20... Be8 {[%clk 0:01:45.2]} 21. Rxd8 {[%clk 0:02:27.5]} 21... Rxd8 {[%clk
0:01:44.1]} 22. b4 {[%clk 0:02:28.2]} 22... Qd6 {[%clk 0:01:37.7]} 23. Rd1
{[%clk 0:02:26]} 23... Qc7 {[%clk 0:01:37.2]} 24. c5 {[%clk 0:02:18.9]} 24...
Rxd1+ {[%clk 0:01:34.2]} 25. Qxd1 {[%clk 0:02:10.6]} 25... Bc6 {[%clk
0:01:33.6]} 26. Qd6 {[%clk 0:02:06.6]} 26... Qxd6 {[%clk 0:01:30]} 27. cxd6
{[%clk 0:02:07.5]} 27... Bd7 {[%clk 0:01:25]} 28. b5 {[%clk 0:02:00.3]} 28...
Ne8 {[%clk 0:01:19.1]} 29. Bc6 {[%clk 0:01:52.1]} 29... Bxc6 {[%clk 0:01:17.9]}
30. bxc6 {[%clk 0:01:51.5]} 30... Nxd6 {[%clk 0:01:18.3]} 31. a4 {[%clk
0:01:49.2]} 31... Nc8 {[%clk 0:01:17.3]} 32. f4 {[%clk 0:01:32.1]} 32... Kf8
{[%clk 0:01:17.5]} 33. Kf2 {[%clk 0:01:32.6]} 33... Ke7 {[%clk 0:01:17.7]} 34.
Nb5 {[%clk 0:01:15.9]} 34... a6 {[%clk 0:01:16.6]} 35. Nc7 {[%clk 0:01:16]}
35... Na7 {[%clk 0:01:07.4]} 36. Nxa6 {[%clk 0:01:15.2]} 36... Nxc6 {[%clk
0:01:07.5]} 37. Ke3 {[%clk 0:01:15.1]} 37... Kd6 {[%clk 0:01:06.6]} 38. Kd3
{[%clk 0:01:13.4]} 38... Na5 {[%clk 0:01:05.4]} 39. Kc3 {[%clk 0:01:10.1]} 39...
Kc6 {[%clk 0:01:03.4]} 40. Kb4 {[%clk 0:01:09.3]} 40... Kb6 {[%clk 0:01:02.6]}
41. Nb8 {[%clk 0:01:08.5]} 41... Nb7 {[%clk 0:00:57.6]} 42. Nd7+ {[%clk
0:01:02.8]} 42... Kc7 {[%clk 0:00:51.5]} 43. Ne5 {[%clk 0:00:58.5]} 43... f6
{[%clk 0:00:50.2]} 44. Nc4 {[%clk 0:00:59.2]} 44... Kc6 {[%clk 0:00:40.9]} 45.
a5 {[%clk 0:00:58.5]} 45... Nc5 {[%clk 0:00:37.3]} 46. Nb2 {[%clk 0:00:52]}
46... Na6+ {[%clk 0:00:36.7]} 47. Kc4 {[%clk 0:00:52]} 47... e5 {[%clk
0:00:33.9]} 48. Nd3 {[%clk 0:00:51.9]} 48... e4 {[%clk 0:00:31.3]} 49. Nc1
{[%clk 0:00:34.7]} 49... e3 {[%clk 0:00:30.8]} 50. Nb3 {[%clk 0:00:35.4]} 50...
e2 {[%clk 0:00:29.9]} 51. Nd4+ {[%clk 0:00:35.8]} 51... Kd6 {[%clk 0:00:28.6]}
52. Nxe2 {[%clk 0:00:36.5]} 52... f5 {[%clk 0:00:27.7]} 53. Nd4 {[%clk
0:00:34.9]} 53... g6 {[%clk 0:00:27.3]} 54. Nc2 {[%clk 0:00:32.4]} 54... g5
{[%clk 0:00:23.7]} 55. Nb4 {[%clk 0:00:32.3]} 55... Nc7 {[%clk 0:00:21.6]} 56.
Kd4 {[%clk 0:00:24.4]} 56... Nb5+ {[%clk 0:00:20.4]} 57. Kc4 {[%clk 0:00:25.1]}
57... Nc7 {[%clk 0:00:20.5]} 58. a6 {[%clk 0:00:24.7]} 58... Na8 {[%clk
0:00:20.5]} 59. Nd3 {[%clk 0:00:20.6]} 59... g4 {[%clk 0:00:19.3]} 60. Ne5
{[%clk 0:00:20.4]} 60... h5 {[%clk 0:00:18.3]} 61. Nf7+ {[%clk 0:00:19.9]} 61...
Kc6 {[%clk 0:00:17.2]} 62. Nh6 {[%clk 0:00:20]} 62... Nc7 {[%clk 0:00:16.4]} 63.
Nxf5 {[%clk 0:00:19.6]} 63... Nxa6 {[%clk 0:00:15.3]} 64. Ng7 {[%clk 0:00:20.2]}
64... Nc7 {[%clk 0:00:15.3]} 65. Nxh5 {[%clk 0:00:19.4]} 65... Ne6 {[%clk
0:00:15.4]} 66. Nf6 {[%clk 0:00:18.9]} 66... Ng7 {[%clk 0:00:15.6]} 67. Nxg4
{[%clk 0:00:18.7]} 67... Nf5 {[%clk 0:00:15.8]} 68. Kd3 {[%clk 0:00:19.1]} 68...
Kd5 {[%clk 0:00:15.1]} 69. Ne3+ {[%clk 0:00:19.5]} 1-0

[Event "*** SCC Grand Prix: Titled Tuesday Blitz"]
[Site "Chess.com"]
[Date "2020.06.02"]
[Round "2"]
[White "not_najdorfs_player"]
[Black "Oneofmyturns"]
[Result "0-1"]
[WhiteElo "2305"]
[BlackElo "2611"]
[TimeControl "180+1"]
[EndTime "10:18:45 PDT"]
[Termination "Oneofmyturns won by resignation"]

1. e4 {[%clk 0:03:00.9]} 1... c6 {[%clk 0:02:59.6]} 2. d4 {[%clk 0:03:00.4]}
2... d5 {[%clk 0:03:00.5]} 3. exd5 {[%clk 0:03:00.3]} 3... cxd5 {[%clk
0:03:01.4]} 4. Bd3 {[%clk 0:03:00.1]} 4... Nc6 {[%clk 0:03:00.8]} 5. c3 {[%clk
0:02:59.8]} 5... Nf6 {[%clk 0:03:01.2]} 6. h3 {[%clk 0:02:59.8]} 6... g6 {[%clk
0:03:00.6]} 7. Nf3 {[%clk 0:03:00]} 7... Bf5 {[%clk 0:03:00.9]} 8. Be2 {[%clk
0:02:59.1]} 8... h5 {[%clk 0:02:56.5]} 9. O-O {[%clk 0:02:58.9]} 9... Bg7 {[%clk
0:02:56.9]} 10. Re1 {[%clk 0:02:58.4]} 10... O-O {[%clk 0:02:57.4]} 11. Bf4
{[%clk 0:02:58.5]} 11... Ne4 {[%clk 0:02:51.1]} 12. Nbd2 {[%clk 0:02:57.2]}
12... Re8 {[%clk 0:02:46.9]} 13. Qb3 {[%clk 0:02:38.6]} 13... Qd7 {[%clk
0:02:40]} 14. Bf1 {[%clk 0:02:33.9]} 14... Rac8 {[%clk 0:02:14.1]} 15. a4 {[%clk
0:02:17.9]} 15... a6 {[%clk 0:02:12.1]} 16. a5 {[%clk 0:02:17.7]} 16... Nxd2
{[%clk 0:01:56.3]} 17. Nxd2 {[%clk 0:02:11.9]} 17... Kh8 {[%clk 0:01:56]} 18.
Nf3 {[%clk 0:02:09.9]} 18... f6 {[%clk 0:01:56.1]} 19. Rad1 {[%clk 0:02:05.3]}
19... Nxa5 {[%clk 0:01:53.5]} 20. Qb4 {[%clk 0:02:00.6]} 20... Nc6 {[%clk
0:01:51.7]} 21. Qa3 {[%clk 0:01:54.6]} 21... g5 {[%clk 0:01:48.8]} 22. Bg3
{[%clk 0:01:51.3]} 22... h4 {[%clk 0:01:48.4]} 23. Bh2 {[%clk 0:01:49.8]} 23...
e6 {[%clk 0:01:48]} 24. c4 {[%clk 0:01:39.5]} 24... Be4 {[%clk 0:01:42.1]} 25.
Qe3 {[%clk 0:01:27.1]} 25... Nb4 {[%clk 0:01:39.8]} 26. Nd2 {[%clk 0:00:44.9]}
26... Nc2 {[%clk 0:01:18.1]} 27. Qe2 {[%clk 0:00:44.9]} 27... Bg6 {[%clk
0:01:13.9]} 28. c5 {[%clk 0:00:39.2]} 28... Nxd4 {[%clk 0:01:10.3]} 29. Qg4
{[%clk 0:00:35.4]} 29... Nc2 {[%clk 0:01:06.5]} 30. Re2 {[%clk 0:00:34.1]} 30...
Rxc5 {[%clk 0:01:07]} 31. Nb3 {[%clk 0:00:32.9]} 31... Rcc8 {[%clk 0:01:07.5]}
32. Rc1 {[%clk 0:00:30.4]} 32... Rc4 {[%clk 0:00:41.7]} 33. f4 {[%clk
0:00:25.4]} 33... Rec8 {[%clk 0:00:31.6]} 34. g3 {[%clk 0:00:17.2]} 34... hxg3
{[%clk 0:00:25.8]} 35. Bxg3 {[%clk 0:00:18.1]} 35... Ne3 {[%clk 0:00:26.1]} 36.
Rxe3 {[%clk 0:00:17.5]} 36... Rxc1 {[%clk 0:00:26.3]} 37. Nxc1 {[%clk
0:00:17.7]} 37... Rxc1 {[%clk 0:00:27]} 38. fxg5 {[%clk 0:00:18.3]} 38... f5
{[%clk 0:00:21.7]} 39. Qh4+ {[%clk 0:00:17.8]} 39... Kg8 {[%clk 0:00:21.6]} 40.
Qb4 {[%clk 0:00:11.4]} 40... Qb5 {[%clk 0:00:19]} 41. Qf4 {[%clk 0:00:09]} 41...
Rxf1+ {[%clk 0:00:14.2]} 42. Qxf1 {[%clk 0:00:08.8]} 42... Bd4 {[%clk
0:00:15.1]} 43. Bf2 {[%clk 0:00:05.6]} 43... Bxe3 {[%clk 0:00:14.2]} 44. Bxe3
{[%clk 0:00:04.1]} 44... Qxb2 {[%clk 0:00:13.1]} 45. Qf4 {[%clk 0:00:02.8]}
45... e5 {[%clk 0:00:12.6]} 46. Qf3 {[%clk 0:00:02.1]} 46... Qb1+ {[%clk
0:00:10.9]} 47. Kg2 {[%clk 0:00:02.1]} 47... Qe4 {[%clk 0:00:11.3]} 48. Kg3
{[%clk 0:00:02.5]} 48... Qxf3+ {[%clk 0:00:11.2]} 49. Kxf3 {[%clk 0:00:03.4]}
49... d4 {[%clk 0:00:11.8]} 50. Bd2 {[%clk 0:00:03.4]} 50... Kf7 {[%clk
0:00:11.2]} 51. h4 {[%clk 0:00:03.4]} 51... Ke6 {[%clk 0:00:11.6]} 52. Bb4
{[%clk 0:00:03.9]} 52... Kd5 {[%clk 0:00:10.7]} 53. Ke2 {[%clk 0:00:04.8]} 53...
Bh5+ {[%clk 0:00:10.2]} 54. Kd2 {[%clk 0:00:04.5]} 54... e4 {[%clk 0:00:11.1]}
55. Be7 {[%clk 0:00:04.2]} 55... a5 {[%clk 0:00:09.9]} 56. Bf8 {[%clk
0:00:02.8]} 56... a4 {[%clk 0:00:10.2]} 57. Kc2 {[%clk 0:00:03.3]} 57... b5
{[%clk 0:00:10.3]} 58. Kd2 {[%clk 0:00:03.5]} 58... f4 {[%clk 0:00:10.6]} 59. g6
{[%clk 0:00:03.4]} 59... Bxg6 {[%clk 0:00:10.5]} 60. Bh6 {[%clk 0:00:04.1]}
60... f3 {[%clk 0:00:10.4]} 61. Ke1 {[%clk 0:00:04.6]} 61... e3 {[%clk
0:00:10.2]} 62. Kf1 {[%clk 0:00:04.4]} 62... a3 {[%clk 0:00:10.7]} 0-1